Workbook

Sheet ورقة1
A1: ت | B1: اسم | C1: مبلغ الاقساط | E1: اسم | F1: المبلغ الكلي
A2: 1 | B2: ايمن جبار شنون حسين | C2: 100 | E2: ايمن جبار شنون حسين | F2: =SUM(IF(E2=B$2:B$33,C$2:C$33,0)) -> 300
A3: 2 | B3: ايمن جبار شنون حسين | C3: 200 | E3: ايوب زرار عمر علي | F3: =SUM(IF(E3=B$2:B$33,C$2:C$33,0)) -> 200
A4: 3 | B4: ايوب زرار عمر علي | C4: 200 | E4: بارق عباس مولان شداد | F4: =SUM(IF(E4=B$2:B$33,C$2:C$33,0)) -> 1000
A5: 4 | B5: بارق عباس مولان شداد | C5: 1000 | E5: باسم ابراهيم محمد علي | F5: =SUM(IF(E5=B$2:B$33,C$2:C$33,0)) -> 4500
A6: 5 | B6: باسم ابراهيم محمد علي | C6: 4500 | E6: باسم حميد علي الخفاجي | F6: =SUM(IF(E6=B$2:B$33,C$2:C$33,0)) -> 300
A7: 6 | B7: باسم حميد علي الخفاجي | C7: 100 | E7: باسم حويني عباس محمد | F7: =SUM(IF(E7=B$2:B$33,C$2:C$33,0)) -> 500
A8: 7 | B8: باسم حميد علي الخفاجي | C8: 200 | E8: باعث محمد حلفة راشد | F8: =SUM(IF(E8=B$2:B$33,C$2:C$33,0)) -> 900
A9: 8 | B9: باسم حويني عباس محمد | C9: 500 | E9: بختيار ابراهيم محمد يونس | F9: =SUM(IF(E9=B$2:B$33,C$2:C$33,0)) -> 500
A10: 9 | B10: باعث محمد حلفة راشد | C10: 400 | E10: بختيار خالد مجيد | F10: =SUM(IF(E10=B$2:B$33,C$2:C$33,0)) -> 800
A11: 10 | B11: باعث محمد حلفة راشد | C11: 500 | E11: بختيار محسن قادر صوفي | F11: =SUM(IF(E11=B$2:B$33,C$2:C$33,0)) -> 700
A12: 11 | B12: بختيار ابراهيم محمد يونس | C12: 200 | E12: بدرالدين جميل عمو فقو | F12: =SUM(IF(E12=B$2:B$33,C$2:C$33,0)) -> 600
A13: 12 | B13: بختيار ابراهيم محمد يونس | C13: 300 | E13: برزان سوري محمد سليم | F13: =SUM(IF(E13=B$2:B$33,C$2:C$33,0)) -> 600
A14: 13 | B14: بختيار خالد مجيد | C14: 800 | E14: بركات ميرزا كتي قاسم | F14: =SUM(IF(E14=B$2:B$33,C$2:C$33,0)) -> 500
A15: 14 | B15: بختيار محسن قادر صوفي | C15: 400 | E15: بشار سلامة علي جاسم | F15: =SUM(IF(E15=B$2:B$33,C$2:C$33,0)) -> 7500
A16: 15 | B16: بختيار محسن قادر صوفي | C16: 300 | E16: بشار علي عدو شينو | F16: =SUM(IF(E16=B$2:B$33,C$2:C$33,0)) -> 400
A17: 16 | B17: بدرالدين جميل عمو فقو | C17: 600 | E17: بشتيوان رضا خضر محمد | F17: =SUM(IF(E17=B$2:B$33,C$2:C$33,0)) -> 8541.667
A18: 17 | B18: برزان سوري محمد سليم | C18: 100 | E18: بهجت انصيف عبد نصيف | F18: =SUM(IF(E18=B$2:B$33,C$2:C$33,0)) -> 600
A19: 18 | B19: برزان سوري محمد سليم | C19: 500 | E19: بهرام مناف مصطفى قادر | F19: =SUM(IF(E19=B$2:B$33,C$2:C$33,0)) -> 200
A20: 19 | B20: بركات ميرزا كتي قاسم | C20: 200 | E20: تحرير عبد بلال حميد | F20: =SUM(IF(E20=B$2:B$33,C$2:C$33,0)) -> 300
A21: 20 | B21: بركات ميرزا كتي قاسم | C21: 300 | E21: تحسين حسن حمد عمر | F21: =SUM(IF(E21=B$2:B$33,C$2:C$33,0)) -> 300
A22: 21 | B22: بشار سلامة علي جاسم | C22: 7500 | E22: تركي خيري عبدالله مشاري | F22: =SUM(IF(E22=B$2:B$33,C$2:C$33,0)) -> 8750
A23: 22 | B23: بشار علي عدو شينو | C23: 200 | E23: تكليف جابر ريكان مهلي | F23: =SUM(IF(E23=B$2:B$33,C$2:C$33,0)) -> 9166.667
A24: 23 | B24: بشار علي عدو شينو | C24: 200
A25: 24 | B25: بشتيوان رضا خضر محمد | C25: 8541.667
A26: 25 | B26: بهجت انصيف عبد نصيف | C26: 500
A27: 26 | B27: بهجت انصيف عبد نصيف | C27: 100
A28: 27 | B28: بهرام مناف مصطفى قادر | C28: 200
A29: 28 | B29: تحرير عبد بلال حميد | C29: 300
A30: 29 | B30: تحسين حسن حمد عمر | C30: 200
A31: 30 | B31: تحسين حسن حمد عمر | C31: 100
A32: 31 | B32: تركي خيري عبدالله مشاري | C32: 8750
A33: 32 | B33: تكليف جابر ريكان مهلي | C33: 9166.667

Sheet ورقة2
A1: اقساط التامين المستقطعة لقرض الاسكان 100 راتب لشهر/ شباط/ لسنة 2025 من منتسبي محافظة نينوى / قائمقامية قضاء الحمدانية / والمحالين على التقاعد
A2: ت | B2: اسم المقترض | C2: مبلغ قسط التأمين
A3: 1 | B3: نيسان كرومي رزوقي قس | C3: 20833.333
A4: 2 | B4: هيام متي نعوم ال | C4: 20833.333
B5: المجموع | C5: =SUM(C3:C4) -> 41666.666

Sheet ورقة3
A1: تسديد اقساط التامين المستقطعة لقرض الاسكان 100 راتب لشهر/ شباط/ لسنة 2025 من منتسبي مديرية اتصالات وبريد نينوى
A2: ت | B2: اسم المقترض | C2: مبلغ قسط التأمين
A3: 1 | B3: سلوى علي صفر عبدالله | C3: 15084
B4: المجموع | C4: =SUM(C3) -> 15084

Sheet ورقة4
A1: ابراهيم خليل اسماعيل حميد | B1: 11500
A2: ابراهيم فيصل جاسم صالح | B2: 8541.667
A3: جاسم جابر عويد راضي | B3: 161.332
A4: زهير مجيد بني قاقو | B4: 185.332
A5: عبدالحليم علوان داود احمد | B5: 969
A6: سالم حمود ابراهيم جبر | B6: 1321
A7: عمار محمود شاكر شاكر | B7: 1776
A8: عباس محمود عاصي يعقوب | B8: 1844.667
A9: كيفي محمد حمد امين | B9: 2105.332
A10: جاسم عبدالله قادر امين | B10: 5833.333
A11: جاسم عبدالله قادر امين | B11: 5833.333
A12: جاسم محمد طعمة حمدالله | B12: 5833.333
A13: جاسم محمد طعمة حمدالله | B13: 5833.333
A14: رائد عبد فياض علي | B14: 5833.333
A15: رائد عبد فياض علي | B15: 5833.333
A16: عامر خضير مهدي محسن | B16: 5833.333
A17: بدرالدين جميل عمو فقو | B17: 6625
A18: اسامة اسعد طاهر عبد | B18: 6833.333
A19: اسامة اسعد طاهر عبد | B19: 6833.333
A20: جعفر الصادق ابراهيم امناتي رسن | B20: 6833.333
A21: جعفر الصادق ابراهيم امناتي رسن | B21: 6833.333
A22: حسين جلال صالح مهدي | B22: 6833.333
A23: خالد محمد علي حسين | B23: 6833.333
A24: خالد محمد علي حسين | B24: 6833.333
A25: دلشاد احمد رسول صالح | B25: 6833.333
A26: دلشاد احمد رسول صالح | B26: 6833.333
A27: زهاء عبدالله عيسى حمزة | B27: 6833.333
A28: زهاء عبدالله عيسى حمزة | B28: 6833.333
A29: علي حسين علوان هادي | B29: 6833.333
A30: علي حسين علوان هادي | B30: 6833.333
A31: علي محمد حسين علي | B31: 6833.333
A32: فرهاد فتاح محمد علي | B32: 6833.333
A33: مصطفى رعد محمد علي | B33: 6833.333
A34: نهاد فقي حمد شرف | B34: 6833.333
A35: هشام عبد هاشم حسن | B35: 6833.333
A36: احمد عبدالمحسن عيسى علي | B36: 7000
A37: احمد عبدالمحسن عيسى علي | B37: 7000
A38: ثامر حمزة راضي عبد | B38: 7000
A39: ثامر حمزة راضي عبد | B39: 7000
A40: عراك حسين علوان جواد | B40: 7000
A41: عراك حسين علوان جواد | B41: 7000
A42: احمد جاسم محمد نعمة | B42: 7166.667
A43: حازم محمد عباس نعو | B43: 7166.667
A44: ريباز ياسين اسعد رسول | B44: 7166.667
A45: سه روة صالح خدر حمة | B45: 7166.667
A46: سه روة صالح خدر حمة | B46: 7166.667
A47: عباس عودة عطب عفتان | B47: 7166.667
A48: عدنان خيري خضر رشو | B48: 7166.667
A49: علي رحيم قاسم عيسى | B49: 7166.667
A50: علي رحيم قاسم عيسى | B50: 7166.667
A51: علي نصار عبيد عويد | B51: 7166.667
A52: عمار مسلم كاظم مزعل | B52: 7166.667
A53: عمار مسلم كاظم مزعل | B53: 7166.667
A54: محمد علي عبد كايم | B54: 7166.667
A55: محمد علي عبد كايم | B55: 7166.667
A56: محمود موزان صبار درو | B56: 7166.667
A57: محمود موزان صبار درو | B57: 7166.667
A58: ياسر احمد روضان كوكان | B58: 7166.667
A59: ياسر احمد روضان كوكان | B59: 7166.667
A60: ارشد مصعب عبدالواحد عبدالله | B60: 7333.333
A61: اكرم طاهر رشيد حسن | B61: 7333.333
A62: امير محمد صديق حسن | B62: 7333.333
A63: ريحان هادي جابر طويرش | B63: 7333.333
A64: ريحان هادي جابر طويرش | B64: 7333.333
A65: طلال ميسر مهران شبيب | B65: 7333.333
A66: عبدالله عبدالجواد فرحان | B66: 7333.333
A67: عبدالله عبدالجواد فرحان | B67: 7333.333
A68: عبدالله يوسف حسين مام شيخ | B68: 7333.333
A69: عبدالله يوسف حسين مام شيخ | B69: 7333.333
A70: علاء محمد كاطع نجرس | B70: 7333.333
A71: علاء محمد كاطع نجرس | B71: 7333.333
A72: كاروان قادر مصطفى قادر | B72: 7333.333
A73: كاروان قادر مصطفى قادر | B73: 7333.333
A74: مهدي هاشم مجيد شاهين | B74: 7333.333
A75: مهدي هاشم مجيد شاهين | B75: 7333.333
A76: اسماعيل كاظم عبدعلي وني | B76: 7375
A77: اسماعيل كاظم عبدعلي وني | B77: 7375
A78: احمد سيف الدين يونس ابراهيم | B78: 7500
A79: احمد عبدالامير مشكور حمود | B79: 7500
A80: احمد علي ذياب حميد | B80: 7500
A81: احمد قاسم مدلل علي | B81: 7500
A82: احمد قاسم مدلل علي | B82: 7500
A83: احمد كريم جابر زياد | B83: 7500
A84: احمد كريم جابر زياد | B84: 7500
A85: احمد لاو مولود عبدالله | B85: 7500
A86: احمد لاو مولود عبدالله | B86: 7500
A87: ازاد جندي خلف اسماعيل | B87: 7500
A88: الياس خضر احمد فنش | B88: 7500
A89: الياس خضر احمد فنش | B89: 7500
A90: امين مالك مهدي كاطع | B90: 7500
A91: امين مالك مهدي كاطع | B91: 7500
A92: اوات زرار احمد عوديش | B92: 7500
A93: اوات زرار احمد عوديش | B93: 7500
A94: اياد شكور موسى رشيد | B94: 7500
A95: باسم ابراهيم محمد علي | B95: 7500
A96: برزان سوري محمد سليم | B96: 7500
A97: برزان سوري محمد سليم | B97: 7500
A98: بشار سلامة علي جاسم | B98: 7500
A99: جابر كاظم عجة محمود | B99: 7500
A100: حارث حسان رميض تعلو | B100: 7500
A101: حسن طعيمة بزون جوهر | B101: 7500
A102: حسن طعيمة بزون جوهر | B102: 7500
A103: حسن محمد شعلان محمود | B103: 7500
A104: حسن محمد شعلان محمود | B104: 7500
A105: حسن محمد يونس احمد | B105: 7500
A106: حسين خيري بركات ناصر | B106: 7500
A107: حسين خيري بركات ناصر | B107: 7500
A108: حسين طاهر سلمان خلف | B108: 7500
A109: حسين طاهر سلمان خلف | B109: 7500
A110: حسين علي حبيب مهدي | B110: 7500
A111: حسين علي حبيب مهدي | B111: 7500
A112: حسين محمود محمد خضير | B112: 7500
A113: حيدر شاكر صبيح تعيب | B113: 7500
A114: حيدر شاكر صبيح تعيب | B114: 7500
A115: حيدر علي ناصر ادريس | B115: 7500
A116: حيدر علي ناصر ادريس | B116: 7500
A117: حيدر محمد عبدالجبار وهيب | B117: 7500
A118: حيدر محمد عبدالجبار وهيب | B118: 7500
A119: خالد رشو مراد رزكو | B119: 7500
A120: خالد رشو مراد رزكو | B120: 7500
A121: خالد وليد حسين علوان | B121: 7500
A122: خالد وليد حسين علوان | B122: 7500
A123: خالص مشعان جزاع شدك | B123: 7500
A124: دلير جلال ميكائيل عزيز | B124: 7500
A125: دلير جلال ميكائيل عزيز | B125: 7500
A126: رائد عكلة حمد علي | B126: 7500
A127: رشيد حسن محمد بريج | B127: 7500
A128: رشيد حسن محمد بريج | B128: 7500
A129: رعد طلاع مزعل جبر | B129: 7500
A130: رعد طلاع مزعل جبر | B130: 7500
A131: رفعت علي ناقي عرب علي | B131: 7500
A132: رفعت علي ناقي عرب علي | B132: 7500
A133: ريبر محمد سعيد محمد | B133: 7500
A134: ريبر محمد سعيد محمد | B134: 7500
A135: زبير حمد امين نبي سندي | B135: 7500
A136: زينل عباس محمد حسين | B136: 7500
A137: زينل عباس محمد حسين | B137: 7500
A138: ساجد علي محمد علي | B138: 7500
A139: ساجد علي محمد علي | B139: 7500
A140: سامان حمد امين رشيد ابراهيم | B140: 7500
A141: ستار جلال كريم عارف | B141: 7500
A142: سعد نجم حسين سمير | B142: 7500
A143: سعد نجم حسين سمير | B143: 7500
A144: سعدون نجم عبدالله خالد | B144: 7500
A145: سعدون نجم عبدالله خالد | B145: 7500
A146: سيف طالب داخل جلاب | B146: 7500
A147: سيف ظاهر علوان العزاوي | B147: 7500
A148: شيرزاد محمد كريم كرم | B148: 7500
A149: شيرزاد محمد كريم كرم | B149: 7500
A150: صالح احمد عبدالحميد البستان | B150: 7500
A151: صالح احمد عبدالحميد البستان | B151: 7500
A152: صدام حسين احمد عبدالرحمن | B152: 7500
A153: عاجل وهد صياح جفد | B153: 7500
A154: عاجل وهد صياح جفد | B154: 7500
A155: عباس علي خميس عودة | B155: 7500
A156: عباس علي خميس عودة | B156: 7500
A157: عبدالحميد شريف علي عبو | B157: 7500
A158: عبدالحميد شريف علي عبو | B158: 7500
A159: عبدالعزيز عيدو قاسم شموكة | B159: 7500
A160: عبدالله حميد حنشول قبيش | B160: 7500
A161: عبدالله حميد حنشول قبيش | B161: 7500
A162: عبدالله علي غالي محمود | B162: 7500
A163: عبدالله علي غالي محمود | B163: 7500
A164: عدنان محمد مظلوم احمد | B164: 7500
A165: عدنان محمد مظلوم احمد | B165: 7500
A166: عدي حافظ نجم عبدالله | B166: 7500
A167: عدي حافظ نجم عبدالله | B167: 7500
A168: عدي كاظم محمد سعيد | B168: 7500
A169: عدي كاظم محمد سعيد | B169: 7500
A170: علاء حسين علي وهب | B170: 7500
A171: علاء حسين علي وهب | B171: 7500
A172: علي ثجيل جابر هميم | B172: 7500
A173: علي حسين علي رحيم | B173: 7500
A174: علي ياسر حسين بكوع | B174: 7500
A175: علي ياسر حسين بكوع | B175: 7500
A176: عماد سعيد عبد براز | B176: 7500
A177: عماد محسن نامق هوار | B177: 7500
A178: عماد محسن نامق هوار | B178: 7500
A179: عماد محمد رجب احمد | B179: 7500
A180: عيسى سلمان وكاع عبدالله | B180: 7500
A181: غسان حسن اسماعيل محمد | B181: 7500
A182: غسان حسن اسماعيل محمد | B182: 7500
A183: فارس حسين حمد ابراهيم | B183: 7500
A184: فاضل الياس شيخو فاضل | B184: 7500
A185: فاضل فير غالي حسين | B185: 7500
A186: فاضل فير غالي حسين | B186: 7500
A187: فالح بشير عجيل عباس | B187: 7500
A188: فؤاد مناع حمادة حسين | B188: 7500
A189: فؤاد مناع حمادة حسين | B189: 7500
A190: قائد سليم دشتو شهيد | B190: 7500
A191: قائد سليم دشتو شهيد | B191: 7500
A192: قصي مسلم عبود صاطي | B192: 7500
A193: قيس محي علي شاي | B193: 7500
A194: قيس محي علي شاي | B194: 7500
A195: كمال اسعد ميرزا اسعد | B195: 7500
A196: كمال اسعد ميرزا اسعد | B196: 7500
A197: لاوو رحمان دينو عبدالرحمن | B197: 7500
A198: لاوو رحمان دينو عبدالرحمن | B198: 7500
A199: ليث حمد ديام جاسم | B199: 7500
A200: ليث حمد ديام جاسم | B200: 7500
... 985 more rows
